Cogmind - Beta 11.1 @@@ ROGUE MODE // 2022.06.18 @ 21:04:53 Player: SearedSteak Result: Destroyed by G-47 Trooper with Particle Gun Performance ------------- Evolutions (2) 1000 Regions Visited (3) 600 Robots Destroyed (32) 160 Value Destroyed (818) 818 Prototype IDs (3) 60 Alien Tech Used (0) 0 Bonus (0) 0 TOTAL SCORE: 2638 Bonus ------- None Cogmind --------- Core Integrity 0/550 Matter 295/300 Energy 83/100 System Corruption 0% Temperature Cool (27) Movement Core (1350) Ox26 Location -8/Materials Parts ------- > --- POWER (2) -------- (None) > --- PROPULSION (4) --- (None) > --- UTILITY (3) ------ Huge Storage Unit Advanced Targeting Computer > --- WEAPON (2) ------- (None) > --- INVENTORY (25) --- Light Ion Engine Weight Redist. System Light Armor Plating Peak State ------------ > --- POWER ------------ Light Nuclear Core > --- PROPULSION ------- Light Treads > --- UTILITY ---------- Huge Storage Unit High-capacity Matter Pod Advanced Targeting Computer > --- WEAPON ----------- Heavy EM Shotgun Heavy EM Shotgun > --- INVENTORY -------- Weight Redist. System Light Armor Plating Light EM Pulse Cannon Light EM Pulse Cannon [Rating: 17] Favorites ----------- Power Light Nuclear Core Engine Light Ion Engine Power Core Light Nuclear Core Propulsion Aluminum Leg Treads Light Treads Leg Aluminum Leg Utility High-capacity Matter Pod Device Improved Heat Sink Storage High-capacity Matter Pod Processor Advanced Targeting Computer Weapon Improved Assault Rifle Energy Gun Heavy EM Shotgun Energy Cannon Light EM Pulse Cannon Ballistic Gun Improved Assault Rifle Build | -11 -10 -9 -8 ------- Run | Scr Mat Mat Mat Slots Evolved 4 | . . 2 2 Power 1 | . . . 1 Propulsion 2 | . . 2 . Utility 1 | . . . 1 Weapon . | . . . . Parts Attached 51 | 6 17 24 4 Power 10 | 1 4 5 . Engine 5 | 1 1 3 . Core 5 | . 3 2 . Reactor . | . . . . Propulsion 14 | 2 4 8 . Treads 8 | . . 8 . Leg 6 | 2 4 . . Wheel . | . . . . Hover . | . . . . Flight . | . . . . Utility 8 | 1 4 2 1 Device 2 | . 1 1 . Storage 5 | 1 3 1 . Processor 1 | . . . 1 Hackware . | . . . . Protection . | . . . . Artifact . | . . . . Weapon 19 | 2 5 9 3 Energy Gun 5 | 2 . 3 . Energy Cannon 4 | . . 1 3 Ballistic Gun 10 | . 5 5 . Ballistic Cannon . | . . . . Launcher . | . . . . Special Weapon . | . . . . Impact Weapon . | . . . . Slashing Weapon . | . . . . Piercing Weapon . | . . . . Special Melee Weapon . | . . . . Unidentified Prototypes 3 | . 1 2 . Parts Lost 14 | . . 6 8 Power 4 | . . 3 1 Propulsion 3 | . . 2 1 Utility 2 | . . 1 1 Weapon 5 | . . . 5 Highest Loss Streak 3 | . . 2 3 To Critical Strikes . | . . . . Average Slot Usage (%) 59 | . 92 49 37 Engine 1 | . 1 2 . Core 5 | . 12 3 . Treads 2 | . . 5 1 Leg 9 | . 25 3 . Device 5 | . 12 4 . Storage 16 | . 14 16 17 Processor 3 | . . . 9 Energy Gun 3 | . 3 3 1 Energy Cannon 2 | . . . 7 Ballistic Gun 9 | . 21 9 . Naked Turns . | . . . . Heaviest Build 97 | 10 32 97 97 Greatest Support 80 | 20 20 80 20 Greatest Overweight (x) 30 | . 1 29 30 Average Overweight (x) 2 | . . 3 22 Largest Inventory Capacity 25 | 8 25 25 25 Average Capacity 16 | 7 8 15 25 Most Carried 7 | 3 7 7 4 Average Carried 3 | . 3 4 3 Final Capacity 25 | 8 5 25 25 Final Carried 5 | . 3 5 3 Class Distribution -------------------- 75% | Mutant 24% | Scavenger-Mutant Dominant Class ---------------- Scavenger-Mutant | -10/Materials Mutant | -9/Materials Mutant | -8/Materials Resources | -11 -10 -9 -8 ----------- Run | Scr Mat Mat Mat Matter Collected 986 | 230 435 261 60 Remotely . | . . . . Salvage Created 1021 | . 281 476 264 Parts 67 | . 19 33 15 Haulers Intercepted . | . . . . Recyclers Shooed 1 | . . . 1 Parts Field Recycled . | . . . . Retrieved Matter . | . . . . Parts Self-Destructed . | . . . . Prevented . | . . . . Kills | -11 -10 -9 -8 ------- Run | Scr Mat Mat Mat Combat Hostiles Destroyed 30 | . 6 14 10 Guns 23 | . 6 14 3 Cannons 3 | . . . 3 AOE 4 | . . . 4 Classes Destroyed 4 | . 2 2 . Watcher 2 | . 1 1 . Swarmer 16 | . . 9 7 Grunt 9 | . 6 . 3 Sentry 5 | . . 5 . Best Kill Streak 5 | . 2 4 5 Combat Bots Only 5 | . 2 4 5 Max Kills in Single Turn 2 | . 1 1 2 Gunslinging . | . . . . Exploded 2 | . . . 2 Melee . | . . . . Uniques/NPCs Destroyed . | . . . . Combat | -11 -10 -9 -8 -------- Run | Scr Mat Mat Mat Damage Taken 2685 | . 297 1148 1240 Core 963 | . 21 384 558 Absorbed by Shields . | . . . . Regen/Repaired (Parts) 39 | . . 39 . Core Remaining (%) 65 | 100 91 4 . Volleys Fired 107 | . 30 56 21 Largest 2 | . 2 2 2 Hottest 112 | . 80 50 112 Shots Fired 179 | . 59 92 28 Gun 164 | . 59 92 13 Cannon 15 | . . . 15 Launcher . | . . . . Special . | . . . . Kinetic 129 | . 45 84 . Thermal 14 | . 14 . . Explosive . | . . . . Electromagnetic 36 | . . 8 28 Robot Hit Streak 10 | . 5 10 6 Robot Miss Streak 6 | . 6 5 6 Penetration Max . | . . . . Secondary Targets 2 | . 1 . 1 Max Gunslinging Chain 1 | . 1 . 1 Shots Hit Robots 100 | . 28 52 20 Core Hits 51 | . 14 22 15 Critical Kills . | . . . . Critical Parts Destroyed . | . . . . Critical Strikes . | . . . . Melee Attacks . | . . . . Impact . | . . . . Slashing . | . . . . Piercing . | . . . . Sneak Attacks . | . . . . Combat Hostiles . | . . . . Follow-up Attacks . | . . . . Damage Inflicted 1636 | . 388 658 590 Guns 1132 | . 388 657 87 Cannons 265 | . . . 265 Explosions 238 | . . . 238 Melee . | . . . . Ramming 1 | . . 1 . Kinetic 877 | . 310 567 . Thermal 316 | . 78 . 238 Explosive . | . . . . Electromagnetic 442 | . . 90 352 Impact . | . . . . Slashing . | . . . . Piercing . | . . . . Highest Corruption 2 | . 2 . . Average Corruption 1 | . 1 . . Corruption Purged . | . . . . Corruption Blocked . | . . . . Effects 13 | . 13 . . Message Errors 4 | . 4 . . Matter Fused 5 | . 5 . . Energy Discharges 1 | . 1 . . Data Loss (minor) 3 | . 3 . . Overload Shots . | . . . . Overflow Damage 7 | . . . 7 Projectiles . | . . . . Explosions 7 | . . . 7 Melee . | . . . . Knockbacks . | . . . . Impact . | . . . . Kinetic . | . . . . Secondary . | . . . . Self-Inflicted Damage 34 | . . . 34 Shots 1 | . . . 1 Rammed 1 | . . 1 . Targets Rammed 1 | . . 1 . Kicked . | . . . . Crushed . | . . . . Highest Temperature 108 | . 108 11 105 Average Temperature 41 | . 58 6 35 Received Heat Transfer 687 | . 147 243 297 Siege Activations . | . . . . Robots Corrupted . | . . . . Combat Hostiles . | . . . . Parts Fried . | . . . . Impact Corruptions . | . . . . Robots Melted . | . . . . Combat Hostiles . | . . . . Parts Melted . | . . . . Heat Transferred 525 | . 175 . 350 Parts Sabotaged . | . . . . Parts Stolen . | . . . . Parts Stripped . | . . . . Power Chain Reactions 3 | . . . 3 Missiles Intercepted . | . . . . Alert | -11 -10 -9 -8 ------- Run | Scr Mat Mat Mat Peak Influence 196 | . 175 196 163 Initial 33 | . . 9 33 Average 59 | . 52 82 48 Maximum Alert Level . | . . . . Low Security (%) 100 | 100 100 100 100 Level 1 . | . . . . Level 2 . | . . . . Level 3 . | . . . . Level 4 . | . . . . Level 5 . | . . . . High Security . | . . . . Max Security . | . . . . Squads Dispatched 3 | . 3 . . Investigation 1 | . 1 . . Extermination . | . . . . Reinforcement 2 | . 2 . . Assault . | . . . . Garrison . | . . . . Intercept . | . . . . Searches Triggered . | . . . . Construction Impeded . | . . . . Haulers Reinforced . | . . . . Active Scanning Responses . | . . . . Cargo Convoy Interrupts . | . . . . Stealth | -11 -10 -9 -8 --------- Run | Scr Mat Mat Mat Distress Signals 3 | . . 1 2 Communications Jammed . | . . . . Distress Signals . | . . . . Times Spotted 50 | . 14 18 18 Peak Tracking Total 6 | . 2 4 6 Tactical Retreats . | . . . . Traps | -11 -10 -9 -8 ------- Run | Scr Mat Mat Mat Traps Triggered 8 | . 5 3 . Indirectly . | . . . . Trap Hack Attempts . | . . . . Triggered . | . . . . Disarmed . | . . . . Reprogrammed . | . . . . Reused . | . . . . Traps Extracted . | . . . . Installed . | . . . . Triggered . | . . . . Machines | -11 -10 -9 -8 ---------- Run | Scr Mat Mat Mat Machines Disabled 3 | . 1 1 1 Max in Single Turn 1 | . 1 1 1 Machines Sabotaged . | . . . . Garrisons Compromised . | . . . . Overloaded Fab Kills . | . . . . Hacking | -11 -10 -9 -8 --------- Run | Scr Mat Mat Mat Machines Accessed 3 | . 2 1 . Terminals 1 | . 1 . . Fabricators . | . . . . Repair Stations 1 | . . 1 . Recycling Units 1 | . 1 . . Scanalyzers . | . . . . Garrison Access . | . . . . Total Hacks 8 | . 6 2 . Successful 8 | . 6 2 . Failed . | . . . . Catastrophic . | . . . . Database Lockouts . | . . . . Manual . | . . . . Terminals 2 | . 2 . . Fabricators . | . . . . Repair Stations 2 | . . 2 . Recycling Units 4 | . 4 . . Scanalyzers . | . . . . Garrison Access . | . . . . Terminal Hacks 2 | . 2 . . Record 1 | . 1 . . Alert Level 1 | . 1 . . Fabricator Hacks . | . . . . Repair Station Hacks 2 | . . 2 . Scan Component 1 | . . 1 . Repair 1 | . . 1 . Recycling Unit Hacks 4 | . 4 . . Recycle Component 2 | . 2 . . Process 1 | . 1 . . Retrieve Matter 1 | . 1 . . Scanalyzer . | . . . . Garrison Access Hacks . | . . . . Unauthorized Hacks . | . . . . Terminals . | . . . . Fabricators . | . . . . Repair Stations . | . . . . Recycling Units . | . . . . Scanalyzers . | . . . . Garrison Access . | . . . . Data Cores Recovered . | . . . . Used . | . . . . Hacking Detections 1 | . 1 . . Full Trace Events . | . . . . Feedback Events . | . . . . Feedback Blocked . | . . . . Robot Schematics Acquired . | . . . . Robots Built . | . . . . Authchips . | . . . . Time . | . . . . Total Robot Build Rating . | . . . . Part Schematics Acquired . | . . . . Parts Built . | . . . . Authchips . | . . . . Time . | . . . . Total Part Build Rating . | . . . . Parts Repaired 1 | . . 1 . Time 26 | . . 26 . Parts Recycled 2 | . 2 . . Recycled Matter 291 | . 291 . . Retrieved Matter 371 | . 371 . . Retrieved Components . | . . . . Parts Scanalyzed . | . . . . Part Schematics Acquired . | . . . . Parts Damaged . | . . . . Bothacking | -11 -10 -9 -8 ------------ Run | Scr Mat Mat Mat Used RIF Installer . | . . . . Robots Hacked . | . . . . Non-combat . | . . . . Combat . | . . . . Robot Hacks Applied . | . . . . Relay Couplers Released . | . . . . Fabnet Peak Effective % . | . . . . Robots Rewired . | . . . . Allies Hacked . | . . . . Hacks Repelled . | . . . . Allies | -11 -10 -9 -8 -------- Run | Scr Mat Mat Mat Total Allies . | . . . . Largest Group . | . . . . Highest-Rated Group . | . . . . Highest-Rated Ally . | . . . . Total Orders . | . . . . Ally Attacks . | . . . . Total Damage . | . . . . Kills . | . . . . Allies Corrupted . | . . . . Allies Melted . | . . . . Intel | -11 -10 -9 -8 ------- Run | Scr Mat Mat Mat Robot Analysis Total . | . . . . Derelict Logs Recovered . | . . . . Drone Launches . | . . . . Drone Recoveries . | . . . . Exploration | -11 -10 -9 -8 ------------- Run | Scr Mat Mat Mat Turns Passed 3488 | 113 1048 1180 1147 Spaces Moved 1113 | 80 628 316 89 Core 151 | 11 . 74 66 Treads 109 | . . 86 23 Legs 853 | 69 628 156 . Wheels . | . . . . Hover . | . . . . Flight . | . . . . Fastest Speed 50 | 50 120 120 480 Average Speed 272 | 110 140 307 1227 Slowest Speed 1550 | 120 190 1500 1550 Overloaded Moves . | . . . . Propulsion Burnouts . | . . . . Robots Hopped . | . . . . Cave-ins Triggered . | . . . . Exploration Rate (%) 33 | 5 85 29 16 Regions Visited 3 Branch Regions . Pre-discovered Areas . | . . . . Known Exits Taken . | . . . . Unknown Exits Taken 3 | 1 1 1 . Scrap Searched . | . . . . Spaces Dug . | . . . . Terrain Destroyed 5 | . . . 5 Melee . | . . . . Projectile . | . . . . AOE 5 | . . . 5 Terrain Rammed . | . . . . Walls Destroyed . | . . . . Machines Disabled . | . . . . Actions | -11 -10 -9 -8 --------- Run | Scr Mat Mat Mat Total 1416 | 104 740 444 128 Wait 71 | 13 32 16 10 Move 1110 | 79 627 315 89 Hop . | . . . . Pick Up 48 | 6 20 19 3 Fast Attach 6 | . . 6 . Attach 25 | 6 4 11 4 Detach 1 | . 1 . . Swap 20 | . 13 7 . Drop 27 | . 13 13 1 Fire 107 | . 30 56 21 Melee . | . . . . Ram 1 | . . 1 . Kick . | . . . . Crush . | . . . . Escape Stasis . | . . . . Rewire . | . . . . Trap . | . . . . Miscellaneous . | . . . . Route ------- -11/Scrapyard -10/Materials (discovered 5 exits: *Mat x3 / [*Min x2]) -9/Materials -8/Materials History --------- Turn | Location | Event 4 | -11/Scrapyard | Discovered new exit (range 15) 114 | -11/Scrapyard | Entered Materials 234 | -10/Materials | Discovered new exit (range 16) 240 | -10/Materials | Met 8R-AWN 272 | -10/Materials | Discovered new exit (range 13) 303 | -10/Materials | Build established: Mutant 479 | -10/Materials | Discovered new exit (range 5) 709 | -10/Materials | Build established: Scavenger-Mutant 740 | -10/Materials | Discovered new exit (range 15) 1125 | -10/Materials | Discovered new exit (range 12) 1162 | -10/Materials | Entered another Materials area 1162 | -9/Materials | Evolved 2 slots: Propulsion x2 1248 | -9/Materials | Build established: Mutant 1629 | -9/Materials | Core integrity fell below 50% 1779 | -9/Materials | Repaired Lgt. Treads 1896 | -9/Materials | Discovered new exit (range 15) 2098 | -9/Materials | Core integrity fell below 20% 2342 | -9/Materials | Entered another Materials area 2342 | -8/Materials | Evolved 2 slots: Power x1, Utility x1 2508 | -8/Materials | Lost 3 parts (1n2w) 3323 | -8/Materials | Core integrity fell below 50% 3477 | -8/Materials | Core integrity fell below 20% 3489 | -8/Materials | Destroyed by G-47 Trooper with Particle Gun Last Messages --------------- G-47 Trooper destroyed. K-01 Serf collects debris. Hcp. Matter Pod destroyed. Lgt. EM Pulse Cannon destroyed. G-47 Trooper destroyed. Acquired Corrupted Lgt. Nuclear Core. Dropped Corrupted Lgt. Nuclear Core. W-25 Informer sends out distress signal. K-01 Serf cleans the Nuclear Reactor. K-01 Serf collects debris. Chain reaction triggered in Lgt. Nuclear Core. G-47 Trooper destroyed. K-01 Serf collects debris. Lgt. EM Pulse Cannon destroyed. K-01 Serf collects debris. U-05 Engineer lays Concrete. K-01 Serf collects debris. U-05 Engineer lays Concrete. K-01 Serf collects debris. Critical hit (Burn: +37). Map ----- +----------------------------------------------------+ | ????????# #""""" |#????????????????? | | ????????####### % #""""" #????????????????? | | ??????????????# #""""" #????????????????? | | ??????????????# #""""" #????????????????? | | ??????????????# + #????????????????? | | ??????????????# ##########????????????????? | | ??????????????# %#?????????????????????????? | | ??????????????# ############ ?????????????? | | ??????????????# ????????????? | | ??????????????# ????????????? | | ??????????????+ ???????????? | | ????????????? # ???????????? | | ???????????? # k ####??????????????? | | ??????????? ?## #?????????????????? | | ?????????? ???# #?????????????????? | | ?????????##????# #########?????????? | | ???????????????# ^ ????????? | | ???????????????# ^ ????????? | | ???????????????# ???????? | | ???????????????# ????????? | | ???????????????# !=! """ ""??????????? | | ???????????????# !=! g """ """?????????? | | ???????????????# =! """ """ "??????? | | ?????????+##/###% g ?????? | | ????????# a = a ?????? | | ????????# @ *%! r a ?????? | | ????????# k ##### k ##"T???????? | | ????????# ######????# #??????????? | | ????????? ??????????# #??????????? | | ??????????]!???????????# [% #??????????? | | ???????????????????????# #??????????? | | ???????????????????????+ #??????????? | | ???????????????????????# #??????????? | | ???????????????????????####+### #??????????? | | ??????????????????????????????? #??????????? | | ???????????????????????????????? #??????????? | | ????????????????????????????????? ??????????? | | ?????????????????????????????????????????????? | | ?????????????????????????????????????????????? | | ?????????????????????????????????????????????? | | ?????????????????????????????????????????????? | | ?????????????????????????????????????????????? | | ?????????????????????????????????????????????? | | ?????????????????????????????????????????????? | | ?????????????????????????????????????????????? | | ?????????????????????????????????????????????? | | ?????????????????????????????????????????????? | | ?????????????????????????????????????????????? | | ?????????????????????????????????????????????? | | ?????????????????????????????????????????????? | +----------------------------------------------------+ Best States ------------- Heat Dissipation 42 Energy Generation 14 Energy Capacity 265 Matter Stores 500 Matter Capacity 500 Sight Range 16 Terrain Scan Density 10 Evasion (%) 55 Targeting Accuracy 8 Recoil Reduction 4 Item Schematics ----------------- None Robot Schematics ------------------ None Fabricated ------------ Nothing Alien Tech Used ----------------- None Achievements -------------- Close Call Challenges ------------ None Game ------ Seed ThrowingHeavyHumpback Manual? 0 Play Time 00:21:58 Cumulative 3.5 hours Start 2022.06.18 @ 20:32:59 End 2022.06.18 @ 21:04:53 Sessions 1 Manual Loads 0 Difficulty Rogue Special Mode None Game No. 12 Rogue 12 Adventurer 0 Explorer 0 Win Type - Total 0 Types 0/0/0/0/0/0/0/0/0 Lore% 2 Gallery% 9 Achievement% 8 Wizard Run 0 Options --------- ASCII 0 Keyboard 0 Movement Mouse Keybinds 0 Fullscreen 1 Font 18/SmallcapsGlow Map View 76x50 Tactical HUD 0 Map Filters NONE Filters NONE Steam 1 RUN: da84de88-478c-40ff-bff6-dbfbc0888347